bitfinex-derivatives/quotes_SOLF0:USTF0_20250505
["timestamp","ask_amount","ask_price","bid_price","bid_amount"]
[1746472569270,6.7981,147.11,147.08,14.02100813]
[1746472569577,3.9949,147.12,147.08,7.22190813]
[1746472569773,3.9949,147.12,147.06,31.16190813]
[1746472569975,3.9949,147.12,147.07,6.7997]
[1746472570174,6.799,147.09,147.07,6.7997]
[1746472570375,6.799,147.09,147.06,37.96190813]
[1746472571877,6.799,147.09,147.07,1.0]
[1746472573172,6.7993,147.08,147.07,1.0]
[1746472576981,6.8012,147.04,147.03,23.92]
[1746472577375,7.22190813,147.07,147.02,7.22190813]
[1746472577681,6.8016,147.03,147.01,23.92]
[1746472578685,11.294643,147.08,146.98,564.7392]
[1746472579077,6.0379,147.07,146.98,571.5429]
[1746472579383,6.8027,147.01,146.98,571.5429]
[1746472579681,6.0379,147.07,146.98,564.7392]
[1746472580683,6.803,147.0,146.98,564.7392]
[1746472584586,6.8028,147.01,146.98,571.543]
[1746472586481,6.8028,147.01,146.98,564.7392]
[1746472587387,6.8023,147.02,146.98,571.5428]
[1746472587682,6.0379,147.07,146.99,6.8033]
[1746472589183,6.0379,147.07,146.98,564.7392]
[1746472589384,6.8019,147.03,147.0,6.8029]
[1746472590687,6.8014,147.04,147.01,6.8025]
[1746472593790,6.8007,147.05,147.02,6.8018]
[1746472594093,1.9389,147.07,147.02,23.92]
[1746472594393,6.8009,147.05,147.02,30.7217]
[1746472595903,1.9389,147.07,147.02,23.92]
[1746472597303,6.801,147.05,147.02,30.7219]
[1746472597706,1.9389,147.07,147.02,23.92]
[1746472598006,6.801,147.05,147.02,23.92]
[1746472599099,6.8012,147.04,147.02,23.92]
[1746472599297,13.233543,147.07,146.98,8.8029]
[1746472599505,13.233543,147.07,146.97,23.92]
[1746472600008,13.233543,147.07,146.97,30.7241]
[1746472600608,6.8028,147.01,146.97,30.7241]
[1746472601409,6.8028,147.01,146.98,6.8039]
[1746472603009,6.8023,147.02,146.98,6.8039]
[1746472603309,23.9,147.05,146.98,6.8039]
[1746472604411,6.8024,147.02,146.98,6.8039]
[1746472605308,6.8026,147.01,146.98,6.8039]
[1746472606311,6.8026,147.01,146.97,30.724]
[1746472606611,11.294643,147.04,146.97,23.92]
[1746472606911,13.326943,147.04,146.97,23.92]
[1746472607106,6.8034,147.0,146.97,23.92]
[1746472607712,13.326943,147.04,146.96,205.00456083]
[1746472608014,2.0148,147.03,146.96,205.00456083]
[1746472608207,2.0148,147.03,146.94,24.92]
[1746472608407,2.0243,147.02,146.94,24.92]
[1746472608711,6.8051,146.96,146.94,24.92]
[1746472609112,23.92,147.01,146.94,24.92]
[1746472609712,6.8049,146.96,146.94,24.92]
[1746472610721,6.8046,146.97,146.94,31.7258]
[1746472611514,6.8049,146.96,146.94,24.92]
[1746472612016,6.8046,146.97,146.94,31.7258]
[1746472612415,23.92,147.01,146.94,24.92]
[1746472612608,6.8041,146.98,146.95,6.8051]
[1746472615012,6.8044,146.97,146.95,6.8051]
[1746472617117,6.8041,146.98,146.96,6.8049]
[1746472617418,23.92,147.01,146.94,24.92]
[1746472617815,6.8042,146.98,146.94,24.92]
[1746472618207,6.8032,147.0,146.97,6.804]
[1746472618407,2.0243,147.02,146.97,6.804]
[1746472619417,6.8033,147.0,146.97,6.804]
[1746472619619,2.0243,147.02,146.95,2.0587]
[1746472619814,2.0243,147.02,146.94,24.92]
[1746472620218,2.0243,147.02,146.94,31.7255]
[1746472621016,6.8044,146.97,146.94,31.7255]
[1746472621218,2.0243,147.02,146.95,6.8053]
[1746472621415,2.0243,147.02,146.94,24.92]
[1746472621714,6.8038,146.99,146.94,24.92]
[1746472621918,6.8038,146.99,146.96,6.8045]
[1746472622621,6.804,146.98,146.95,6.8051]
[1746472627622,6.8044,146.97,146.95,6.8051]
[1746472627818,2.0243,147.02,146.94,31.7256]
[1746472629123,6.8047,146.97,146.94,31.7256]
[1746472629626,6.8049,146.96,146.94,24.92]
[1746472630519,35.214643,147.0,146.94,1.0]
[1746472630713,1.9469,146.99,146.94,1.0]
[1746472630918,11.294643,146.97,146.94,1.0]
[1746472631527,13.425043,146.97,146.94,1.0]
[1746472631826,6.8053,146.95,146.94,1.0]
[1746472635630,6.8068,146.92,146.89,32.8585]
[1746472635830,11.294643,146.94,146.89,23.92]
[1746472636126,11.294643,146.94,146.86,23.92]
[1746472636317,6.8073,146.91,146.88,6.8086]
[1746472636521,11.294643,146.94,146.86,23.92]
[1746472636723,23.92,146.96,146.86,23.92]
[1746472636923,6.8056,146.95,146.91,6.8068]
[1746472637125,2.1304,146.97,146.9,23.92]
[1746472637326,2.1304,146.97,146.91,23.92]
[1746472637525,6.805,146.96,146.93,6.806]
[1746472638632,6.805,146.96,146.91,30.7269]
[1746472639228,6.8054,146.95,146.91,30.7269]
[1746472639635,6.8054,146.95,146.91,23.92]
[1746472640434,6.8059,146.94,146.91,23.92]
[1746472640934,6.8063,146.93,146.91,23.92]
[1746472641432,2.1304,146.97,146.91,23.92]
[1746472641632,6.8075,146.91,146.88,23.92]
[1746472642032,2.1304,146.97,146.88,23.92]
[1746472642330,11.294643,146.95,146.88,23.92]
[1746472642535,2.0862,146.94,146.88,23.92]
[1746472643832,6.8076,146.91,146.88,23.92]
[1746472644334,6.8078,146.9,146.88,23.92]
[1746472645436,2.0862,146.94,146.88,30.7283]
[1746472645634,35.214643,146.95,146.88,30.7283]
[1746472646036,6.8071,146.92,146.88,30.7283]
[1746472647037,6.8072,146.91,146.88,30.7283]
[1746472648238,23.92,146.95,146.88,23.92]
[1746472648431,35.214643,146.98,146.88,23.92]
[1746472648841,6.8061,146.94,146.9,6.8074]
[1746472649136,6.8061,146.94,146.88,23.92]
[1746472649438,6.8061,146.94,146.91,6.8069]
[1746472649937,6.8061,146.94,146.9,6.8075]
[1746472650133,6.8064,146.93,146.9,6.8075]
[1746472650837,6.806,146.94,146.91,6.8071]
[1746472651341,6.8063,146.93,146.91,6.8071]
[1746472651531,35.214643,146.98,146.9,6.8075]
[1746472651938,6.8066,146.93,146.9,6.8075]
[1746472652139,6.8066,146.93,146.91,6.8071]
[1746472652536,6.806,146.94,146.88,23.92]
[1746472652825,6.806,146.94,146.91,6.8069]
[1746472653027,35.214643,146.98,146.92,23.92]
[1746472653634,35.214643,146.98,146.92,30.7266]
[1746472654339,6.8056,146.95,146.92,30.7266]
[1746472655244,6.8058,146.94,146.92,30.7266]
[1746472655437,6.8058,146.94,146.92,23.92]
[1746472656039,6.8056,146.95,146.92,30.7267]
[1746472657947,6.8058,146.94,146.92,23.92]
[1746472658547,6.8056,146.95,146.92,23.92]
[1746472659038,35.214643,146.98,146.92,23.92]
[1746472660048,6.8056,146.95,146.92,23.92]
[1746472660741,6.8058,146.94,146.92,23.92]
[1746472661348,6.8055,146.95,146.92,23.92]
[1746472661848,35.214643,146.98,146.92,23.92]
[1746472662049,6.8058,146.95,146.92,23.92]
[1746472662447,35.214643,146.98,146.92,23.92]
[1746472664152,6.8058,146.94,146.92,23.92]
[1746472671656,35.214643,146.98,146.92,23.92]
[1746472672558,6.8056,146.95,146.92,30.7265]
[1746472673450,23.92,146.98,146.94,6.8058]
[1746472673656,2.1038,146.99,146.92,23.92]
[1746472674068,6.8044,146.97,146.93,6.806]
[1746472675372,6.8044,146.97,146.94,6.8057]
[1746472675870,6.8049,146.96,146.93,6.806]
[1746472676269,6.8057,146.95,146.92,23.92]
[1746472676470,11.294643,146.98,146.92,23.92]
[1746472676869,6.8057,146.95,146.92,23.92]
[1746472677272,39.469843,147.01,146.92,23.92]
[1746472677471,6.8042,146.98,146.92,23.92]
[1746472677770,6.8042,146.98,146.95,6.8051]
[1746472677964,6.8042,146.98,146.92,23.92]
[1746472677965,6.8043,146.98,146.92,23.92]
[1746472678160,6.8043,146.98,146.95,6.8051]
[1746472678573,6.8045,146.97,146.95,6.8051]
[1746472678773,6.8045,146.97,146.94,6.8055]
[1746472680372,39.469843,147.01,146.92,23.92]
[1746472681178,6.8051,146.96,146.93,6.8062]
[1746472683075,6.8053,146.95,146.92,30.7265]
[1746472683281,11.294643,146.98,146.92,23.92]
[1746472684379,6.8055,146.95,146.92,30.7266]
[1746472684781,11.294643,146.98,146.92,23.92]
[1746472685082,6.8055,146.95,146.92,30.7266]
[1746472685879,6.8058,146.94,146.92,23.92]
[1746472686081,11.294643,146.98,146.92,23.92]
[1746472686782,6.8057,146.95,146.92,23.92]
[1746472686983,11.294643,146.98,146.92,23.92]
[1746472687283,6.8057,146.95,146.92,23.92]
[1746472687885,6.8058,146.94,146.92,23.92]
[1746472689389,6.8055,146.95,146.92,23.92]
[1746472691089,6.8055,146.95,146.92,30.7267]
[1746472692490,6.8055,146.95,146.92,6.8067]
[1746472693390,6.8059,146.94,146.91,30.7269]
[1746472694090,13.331943,146.98,146.91,23.92]
[1746472694688,11.294643,146.95,146.88,23.92]
[1746472694888,2.0111,146.94,146.88,23.92]
[1746472695182,6.808,146.9,146.88,23.92]
[1746472697890,6.8074,146.91,146.88,23.92]
[1746472698087,6.8074,146.91,146.88,30.7286]
[1746472699096,6.8068,146.92,146.89,6.808]
[1746472700396,6.8072,146.91,146.88,30.7283]
[1746472703797,6.8072,146.91,146.89,1.0]
[1746472704593,6.8072,146.91,146.89,7.8081]
[1746472704895,6.8072,146.91,146.89,1.0]
[1746472705698,6.8072,146.91,146.89,7.8081]
[1746472707893,6.8072,146.91,146.89,1.0]
[1746472708093,6.8076,146.9,146.89,1.0]
[1746472713509,6.8076,146.9,146.89,1.0]
[1746472713698,6.809,146.87,146.86,1.0]
[1746472715107,6.8087,146.88,146.86,1.0]
[1746472715908,6.8079,146.9,146.86,1.0]
[1746472716108,6.8079,146.9,146.87,6.8087]
[1746472716909,6.8074,146.91,146.87,6.8087]
[1746472717108,6.8074,146.91,146.88,6.8085]
[1746472717408,11.32070424,146.92,146.86,24.92]
[1746472717612,6.8077,146.9,146.87,6.8088]
[1746472718511,6.8074,146.91,146.88,6.8085]
[1746472719611,6.8077,146.9,146.87,6.8088]
[1746472721213,23.92,146.94,146.86,24.92]
[1746472722114,6.8069,146.92,146.88,6.8083]
[1746472722314,23.92,146.94,146.88,6.8083]
[1746472724022,6.8071,146.92,146.88,6.8083]
[1746472724212,23.92,146.94,146.88,6.8083]
[1746472724517,6.8072,146.91,146.88,6.8083]
[1746472727025,23.92,146.94,146.86,24.92]
[1746472727520,23.92,146.94,146.9,6.8073]
[1746472728024,6.8067,146.93,146.89,6.8079]
[1746472729415,23.92,146.94,146.89,6.8079]
[1746472729610,6.8068,146.92,146.89,6.8079]
[1746472729813,15.49990424,146.95,146.86,24.92]
[1746472730117,6.8061,146.94,146.86,24.92]
[1746472730307,6.8061,146.94,146.91,6.8069]
[1746472730822,6.8064,146.93,146.9,6.8074]
[1746472731014,24.02,146.97,146.9,6.8074]
[1746472731720,24.02,146.97,146.91,6.8071]
[1746472731924,24.02,146.97,146.86,36.24070424]
[1746472732416,6.8063,146.93,146.9,6.8074]
[1746472736026,6.8063,146.93,146.91,6.8072]
[1746472736329,6.8063,146.93,146.86,36.24070424]
[1746472736531,6.8063,146.93,146.9,6.8074]
[1746472737122,6.806,146.94,146.91,6.8071]
[1746472737326,24.02,146.97,146.91,6.8071]
[1746472737532,24.02,146.97,146.9,6.8074]
[1746472737733,6.8065,146.93,146.9,6.8074]
[1746472737935,6.8065,146.93,146.86,36.24070424]
[1746472739341,6.8067,146.92,146.86,36.24070424]
[1746472739639,11.32070424,146.95,146.89,6.8078]
[1746472739939,6.8072,146.92,146.89,6.8078]
[1746472740531,11.32070424,146.95,146.86,24.92]
[1746472740943,6.8074,146.91,146.89,6.8081]
[1746472741134,11.32070424,146.95,146.86,230.05404225]
[1746472741441,11.32070424,146.95,146.86,24.92]
[1746472741640,6.8074,146.91,146.88,6.8083]
[1746472741836,11.32070424,146.95,146.86,24.92]
[1746472742336,6.807,146.92,146.89,6.808]
[1746472744544,6.8064,146.93,146.86,24.92]
[1746472744736,11.32070424,146.95,146.86,24.92]
[1746472745042,6.8055,146.95,146.92,6.8064]
[1746472745242,6.8055,146.95,146.9,24.02]
[1746472745938,6.8055,146.95,146.93,6.806]
[1746472746344,6.8055,146.95,146.9,24.02]
[1746472746545,6.8059,146.94,146.92,6.8065]
[1746472749033,24.02,146.97,146.92,6.8065]
[1746472749034,6.8056,146.95,146.92,6.8065]
[1746472750642,24.02,146.97,146.9,24.02]
[1746472751045,23.96,147.0,146.9,24.02]
[1746472751347,6.8047,146.97,146.95,6.8053]
[1746472751738,6.8047,146.97,146.9,24.02]
[1746472751938,6.8047,146.97,146.94,6.8053]
[1746472752142,6.8047,146.97,146.9,24.02]
[1746472752548,6.8038,146.99,146.9,24.02]
[1746472752945,6.8038,146.99,146.96,6.8044]
[1746472753746,6.804,146.98,146.96,6.8044]
[1746472754141,23.96,147.0,146.97,6.8043]
[1746472754342,6.8036,146.99,146.94,23.96]
[1746472754548,6.8036,146.99,146.96,6.8045]
[1746472754949,6.8036,146.99,146.94,23.96]
[1746472755247,6.8027,147.01,146.94,23.96]
[1746472755643,6.8027,147.01,146.98,6.8037]
[1746472757247,6.8023,147.02,146.99,6.8034]
[1746472757647,23.96,147.03,146.99,6.8034]
[1746472757951,6.8026,147.01,146.98,6.8037]
[1746472759153,6.8031,147.0,146.95,1.9573]
[1746472759554,6.8031,147.0,146.96,6.8046]
[1746472760149,6.8031,147.0,146.95,1.9573]
[1746472760350,6.8031,147.0,146.97,6.8043]
[1746472761052,6.8035,146.99,146.97,6.8043]
[1746472761755,6.8035,146.99,146.96,6.8047]
[1746472761954,6.8039,146.98,146.95,1.9573]
[1746472762155,6.8039,146.98,146.94,23.96]
[1746472762356,6.8039,146.98,146.95,6.805]
[1746472762654,6.8039,146.98,146.94,23.96]
[1746472763254,6.8039,146.98,146.95,6.8052]
[1746472763557,6.8039,146.98,146.94,23.96]
[1746472763755,6.8039,146.98,146.95,6.8051]
[1746472763953,23.96,147.03,146.95,6.8051]
[1746472764853,23.96,147.03,146.94,30.7657]
[1746472765051,11.32070424,147.01,146.94,23.96]
[1746472765250,6.0105,147.0,146.94,23.96]
[1746472765653,6.805,146.96,146.94,23.96]
[1746472768159,6.8053,146.95,146.94,23.96]
[1746472768346,11.32070424,146.98,146.91,23.96]
[1746472769557,11.32070424,146.98,146.91,30.767]
[1746472770658,6.8058,146.95,146.91,30.767]
[1746472771356,6.8059,146.94,146.91,30.767]
[1746472772859,6.8063,146.93,146.91,30.767]
[1746472773662,6.806,146.94,146.91,30.767]
[1746472774267,11.32070424,146.98,146.91,23.96]
[1746472774455,11.32070424,146.98,146.9,1.0]
[1746472774758,11.32070424,146.95,146.9,1.0]
[1746472774956,1.9906,146.94,146.9,1.0]
[1746472775158,4.0672,146.94,146.9,1.0]
[1746472775555,6.8072,146.91,146.9,1.0]
[1746472780575,6.8069,146.92,146.9,1.0]
[1746472780871,4.0672,146.94,146.9,1.0]
[1746472781169,6.8065,146.93,146.9,7.8074]
[1746472787273,6.806,146.94,146.91,6.8071]
[1746472787473,35.28070424,146.95,146.91,6.8071]
[1746472787673,35.28070424,146.95,146.9,1.0]
[1746472787972,23.96,146.95,146.9,1.0]
[1746472788173,35.24070424,146.98,146.9,1.0]
[1746472788371,6.8058,146.95,146.92,6.8065]
[1746472788568,35.24070424,146.98,146.9,1.0]
[1746472788873,6.806,146.94,146.91,6.8069]
[1746472789674,6.8063,146.93,146.91,6.8069]
[1746472789874,35.24070424,146.98,146.9,1.0]
[1746472791576,23.92,146.98,146.9,1.0]
[1746472791976,6.8066,146.93,146.9,7.8073]
[1746472792175,6.8066,146.93,146.9,1.0]
[1746472792479,6.806,146.94,146.91,6.8071]
[1746472792678,23.92,146.98,146.9,1.0]
[1746472793278,6.8058,146.95,146.9,1.0]
[1746472793579,23.92,146.98,146.9,1.0]
[1746472793774,6.8061,146.94,146.91,6.8069]
[1746472796580,6.8063,146.93,146.9,7.8074]
[1746472796980,6.8063,146.93,146.9,1.0]
[1746472797381,6.8063,146.93,146.91,6.8071]
[1746472798483,6.8063,146.93,146.9,7.8074]
[1746472800487,6.8063,146.93,146.91,6.807]
[1746472801486,6.8061,146.94,146.91,6.8069]
[1746472801786,6.8061,146.94,146.9,1.0]
[1746472802285,6.8061,146.94,146.91,6.8069]
[1746472802586,6.8063,146.93,146.91,6.8069]
[1746472802784,23.92,146.98,146.9,1.0]
[1746472802985,23.92,146.98,146.93,6.806]
[1746472803290,23.92,146.98,146.92,23.92]
[1746472803490,11.32070424,147.0,146.92,23.92]
[1746472803787,6.8038,146.99,146.92,23.92]
[1746472803990,23.92,147.01,146.92,23.92]
[1746472804189,6.804,146.98,146.92,23.92]
[1746472804489,6.804,146.98,146.96,6.8046]
[1746472805596,6.8037,146.99,146.96,6.8046]
[1746472806092,6.804,146.98,146.96,6.8046]
[1746472808298,6.8036,146.99,146.96,6.8046]
[1746472809296,6.804,146.98,146.96,6.8046]
[1746472809498,6.804,146.98,146.95,6.8051]
[1746472809797,23.92,147.01,146.92,23.92]
[1746472809998,11.32070424,147.0,146.92,23.92]
[1746472810198,17.29620424,147.0,146.92,23.92]
[1746472811700,6.804,146.98,146.95,6.8051]
[1746472815204,6.8037,146.99,146.96,6.8047]
[1746472815902,6.804,146.98,146.96,6.8047]
[1746472816606,6.8037,146.99,146.96,6.8047]
[1746472820008,23.92,147.01,146.92,25.9113]
[1746472820207,562.94,147.04,146.92,25.9113]
[1746472820507,23.92,147.04,146.94,11.32070424]
[1746472820706,23.92,147.04,146.99,6.8031]
[1746472821009,23.92,147.04,146.97,23.92]
[1746472821210,6.8024,147.02,146.98,6.8036]
[1746472821512,23.92,147.04,146.98,6.8036]
[1746472821712,6.8027,147.01,146.98,6.8036]
[1746472823812,6.8031,147.0,146.97,23.92]
[1746472824012,23.92,147.04,146.97,23.92]
[1746472825211,6.8038,146.99,146.97,23.92]
[1746472825916,6.8039,146.98,146.97,23.92]
[1746472827218,6.8037,146.99,146.97,23.92]
[1746472828921,30.7237,146.99,146.96,6.8049]
[1746472829123,23.92,146.99,146.92,1.9913]
[1746472829519,23.92,146.99,146.97,1.0]
[1746472829913,6.8039,146.98,146.97,1.0]
[1746472830118,23.92,146.99,146.88,154.88758004]
[1746472830319,1.9405,146.98,146.88,154.88758004]
[1746472831021,6.8056,146.95,146.92,6.8065]
[1746472832626,6.8058,146.94,146.92,6.8065]
[1746472834225,11.32070424,146.97,146.92,6.8065]
[1746472834429,23.92,146.96,146.92,6.8065]
[1746472835226,6.8057,146.95,146.93,6.8062]
[1746472836030,6.8057,146.95,146.92,6.8065]
[1746472836231,6.8057,146.95,146.88,143.5668758]
[1746472837228,6.8057,146.95,146.92,6.8063]
[1746472837429,6.8059,146.94,146.88,143.5668758]
[1746472838229,6.8059,146.94,146.92,6.8067]
[1746472838430,6.8056,146.95,146.92,6.8067]
[1746472838731,23.92,146.96,146.92,6.8067]
[1746472838928,6.8063,146.93,146.91,6.8069]
[1746472839329,23.92,146.96,146.91,6.8069]
[1746472839726,6.8062,146.94,146.91,6.8069]
[1746472839934,6.8062,146.94,146.92,6.8067]
[1746472843327,23.92,146.96,146.92,6.8067]
[1746472843533,6.8056,146.95,146.92,6.8067]
[1746472845436,6.8056,146.95,146.93,6.8062]
[1746472845735,30.7251,146.96,146.88,143.5668758]
[1746472846239,30.7251,146.96,146.93,6.8058]
[1746472846633,11.32070424,146.97,146.9,24.92]
[1746472847538,6.805,146.96,146.94,6.8056]
[1746472849740,7.23817498,146.95,146.94,6.8056]
[1746472849943,14.04347498,146.95,146.93,6.806]
[1746472850941,14.04347498,146.95,146.94,6.8058]
[1746472851242,14.04347498,146.95,146.9,24.92]
[1746472852041,14.04347498,146.95,146.93,6.806]
[1746472853247,6.8058,146.94,146.92,6.8066]
[1746472853742,7.23817498,146.95,146.9,24.92]
[1746472854245,14.04377498,146.95,146.93,6.806]
[1746472859247,7.23817498,146.95,146.94,6.8058]
[1746472859446,7.23817498,146.95,146.9,24.92]
[1746472859847,14.04377498,146.95,146.93,6.806]
[1746472863345,14.04327498,146.96,146.93,6.806]
[1746472864150,6.8054,146.95,146.93,6.806]
[1746472866455,14.04327498,146.96,146.94,6.8058]
[1746472866753,7.23817498,146.96,146.9,24.92]
[1746472867056,6.8053,146.95,146.93,6.806]
[1746472867557,6.8054,146.95,146.93,6.8061]
[1746472870748,7.23817498,146.96,146.93,6.8061]
[1746472871056,7.23817498,146.96,146.9,24.92]
[1746472871355,14.04337498,146.96,146.9,24.92]
[1746472871659,7.23817498,146.96,146.91,7.23817498]
[1746472871854,23.9,147.0,146.93,7.23817498]
[1746472872048,31.13817498,147.0,146.95,7.23817498]
[1746472872450,37.94167498,147.0,146.95,7.23817498]
[1746472872756,37.94167498,147.0,146.97,6.804]
[1746472872959,37.94167498,147.0,146.95,7.23817498]
[1746472873155,31.13817498,147.0,146.95,7.23817498]
[1746472873371,7.23817498,147.0,146.95,7.23817498]
[1746472873658,7.23817498,147.02,146.97,7.23817498]
[1746472873860,14.04057498,147.02,146.97,7.23817498]
[1746472874059,14.04057498,147.02,146.94,23.9]
[1746472874060,7.23817498,147.02,146.95,7.23817498]
[1746472874364,14.04137498,147.0,146.95,7.23817498]
[1746472874551,7.23817498,147.0,146.95,7.23817498]
[1746472876161,6.8028,147.01,146.99,6.8032]
[1746472877159,14.04047498,147.02,146.99,6.8032]
[1746472877658,14.04047498,147.02,147.0,6.8029]
[1746472878754,7.23817498,147.02,147.01,6.8025]
[1746472879363,7.23817498,147.02,147.0,6.8028]
[1746472879957,7.23817498,147.02,146.95,7.23817498]
[1746472881462,14.04037498,147.02,146.99,6.8031]
[1746472881661,7.23817498,147.02,146.95,7.23817498]
[1746472881963,14.04027498,147.02,147.0,6.8027]
[1746472883771,7.23817498,147.02,147.01,6.8025]
[1746472888567,39.98307498,147.04,147.02,6.8019]
[1746472888766,4.0688,147.08,146.99,7.23817498]
[1746472888957,7.23817498,147.07,147.01,7.23817498]
[1746472889161,7.23817498,147.07,147.05,6.8003]
[1746472889960,2.1137,147.08,147.05,6.8003]
[1746472890162,9.35187498,147.08,147.05,6.8003]
[1746472890667,6.8001,147.07,147.05,6.8003]
[1746472890968,6.8001,147.07,147.04,6.8009]
[1746472891772,6.8001,147.07,147.05,6.8007]
[1746472892266,6.8001,147.07,147.04,6.8009]
[1746472892471,6.8001,147.07,147.04,7.8009]
[1746472892669,6.8001,147.07,147.04,1.0]
[1746472893472,14.03747498,147.08,147.05,6.8002]
[1746472893770,14.03747498,147.08,147.04,1.0]
[1746472894163,14.03747498,147.08,147.06,6.8002]
[1746472894372,14.03747498,147.08,147.04,1.0]
[1746472894974,14.03747498,147.08,147.05,6.8004]
[1746472896178,6.7998,147.07,147.05,6.8004]
[1746472896378,7.23817498,147.08,147.06,6.8002]
[1746472896876,14.03767498,147.08,147.06,6.8002]
[1746472897079,31.13817498,147.1,147.07,6.7998]
[1746472897474,6.7991,147.09,147.07,6.7998]
[1746472897983,37.93697498,147.1,147.07,6.7998]
[1746472898177,31.13817498,147.1,147.07,6.7998]
[1746472898789,14.03677498,147.1,147.07,6.7998]
[1746472898974,31.11817498,147.14,147.07,7.23817498]
[1746472899382,6.7975,147.12,147.09,6.7988]
[1746472899575,31.11817498,147.14,147.07,7.23817498]
[1746472899873,23.88,147.14,147.06,23.88]
[1746472900676,6.7991,147.09,147.06,30.6802]
[1746472901078,23.88,147.14,147.06,23.88]
[1746472901587,6.7994,147.08,147.06,23.88]
[1746472902581,6.7994,147.08,147.06,30.6801]
[1746472903681,23.88,147.14,147.06,30.6801]
[1746472903682,6.7991,147.09,147.06,30.6801]
[1746472904682,6.7994,147.08,147.06,23.88]
[1746472905785,6.7994,147.08,147.06,30.6802]
[1746472906483,6.7994,147.08,147.06,23.88]
[1746472907183,6.7991,147.09,147.06,30.6802]
[1746472908281,6.7986,147.1,147.07,6.7997]
[1746472908483,23.88,147.14,147.06,23.88]
[1746472909081,6.7981,147.11,147.08,6.799]
[1746472912188,23.88,147.14,147.07,6.7996]
[1746472912689,6.7987,147.1,147.07,6.7996]
[1746472913287,6.7984,147.1,147.06,23.88]
[1746472913693,11.28537821,147.12,147.04,1.0]
[1746472913894,6.7995,147.08,147.04,1.0]
[1746472914187,6.7995,147.08,147.05,6.8007]
[1746472914789,6.7998,147.07,147.04,7.8009]
[1746472915888,23.88,147.1,147.04,7.8009]
[1746472916189,6.7995,147.08,147.04,7.8009]
[1746472916591,6.7998,147.07,147.04,7.8009]
[1746472917189,6.7998,147.07,147.05,6.8007]
[1746472917390,6.7995,147.08,147.05,6.8007]
[1746472917789,23.88,147.1,147.04,7.801]
[1746472918696,23.88,147.1,147.04,1.0]
[1746472918894,6.1589,147.09,147.04,1.0]
[1746472919095,17.44427821,147.09,147.04,1.0]
[1746472919296,11.28537821,147.06,147.0,23.88]
[1746472919497,35.16537821,147.06,147.0,23.88]
[1746472919795,35.16537821,147.06,146.97,23.88]
[1746472920496,6.803,147.01,146.97,30.6842]
[1746472920683,35.16537821,147.06,146.97,23.88]
[1746472920886,35.16537821,147.06,146.94,574.79211933]
[1746472921097,6.8033,147.0,146.94,574.79211933]
[1746472922203,6.8033,147.0,146.96,6.8045]
[1746472922405,6.8033,147.0,146.94,574.79211933]
[1746472922805,6.8033,147.0,146.96,6.8045]
[1746472923103,6.8035,146.99,146.96,6.8045]
[1746472923398,1.9366,147.02,146.95,6.8051]
[1746472923604,6.8044,146.97,146.95,6.8051]
[1746472924206,6.8044,146.97,146.94,6.8056]